[Event "Live Chess"]
[Site "Chess.com"]
[Date "2024.06.02"]
[Round "-"]
[White "Purple1szed"]
[Black "f4nomore"]
[Result "1-0"]
[WhiteElo "2047"]
[BlackElo "1254"]
[TimeControl "300"]
[EndTime "3:38:55 PDT"]
[Termination "Purple1szed won by resignation"]

1. e4 {[%clk 0:04:58.6]} 1... g6 {[%clk 0:04:58.4]} 2. d4 {[%clk 0:04:57.9]}
2... Bg7 {[%clk 0:04:57.9]} 3. Nf3 {[%clk 0:04:57.8]} 3... d6 {[%clk 0:04:56.8]}
4. Nc3 {[%clk 0:04:57.7]} 4... Nf6 {[%clk 0:04:55]} 5. Be3 {[%clk 0:04:57.6]}
5... Nbd7 {[%clk 0:04:53.2]} 6. Qd2 {[%clk 0:04:57.2]} 6... Ng4 {[%clk
0:04:50.3]} 7. Bf4 {[%clk 0:04:55.7]} 7... e5 {[%clk 0:04:48]} 8. dxe5 {[%clk
0:04:55.3]} 8... dxe5 {[%clk 0:04:46.6]} 9. Bg3 {[%clk 0:04:54.8]} 9... O-O
{[%clk 0:04:43.9]} 10. h3 {[%clk 0:04:54.1]} 10... Nh6 {[%clk 0:04:41]} 11.
O-O-O {[%clk 0:04:54]} 11... f5 {[%clk 0:04:31.8]} 12. Nxe5 {[%clk 0:04:47.4]}
12... Nf7 {[%clk 0:04:19.7]} 13. Nxd7 {[%clk 0:04:45.8]} 13... Bxd7 {[%clk
0:04:17.1]} 14. Qxd7 {[%clk 0:04:45.7]} 14... Qg5+ {[%clk 0:04:13.9]} 15. Qd2
{[%clk 0:04:37.7]} 15... Qxd2+ {[%clk 0:04:07.8]} 16. Rxd2 {[%clk 0:04:37.6]}
16... Bh6 {[%clk 0:04:05.9]} 17. f4 {[%clk 0:04:36.7]} 17... Rad8 {[%clk
0:04:02.4]} 18. Rxd8 {[%clk 0:04:34.6]} 18... Rxd8 {[%clk 0:04:00.6]} 19. Bc4
{[%clk 0:04:34.2]} 19... Kg7 {[%clk 0:03:58.3]} 20. Bxf7 {[%clk 0:04:31.8]}
20... Kxf7 {[%clk 0:03:56.8]} 21. exf5 {[%clk 0:04:31.5]} 21... gxf5 {[%clk
0:03:54.4]} 22. Rd1 {[%clk 0:04:29.1]} 22... Rxd1+ {[%clk 0:03:51.1]} 23. Kxd1
{[%clk 0:04:29]} 23... c6 {[%clk 0:03:46.1]} 24. Ke2 {[%clk 0:04:27.6]} 24...
Bg7 {[%clk 0:03:43.9]} 25. Ke3 {[%clk 0:04:26.2]} 25... Bf6 {[%clk 0:03:38.5]}
26. Bf2 {[%clk 0:04:24.2]} 26... c5 {[%clk 0:03:31.3]} 27. g4 {[%clk 0:04:23.1]}
27... Bd4+ {[%clk 0:03:25.3]} 28. Ke2 {[%clk 0:04:22.4]} 28... Bxf2 {[%clk
0:03:16.7]} 29. Kxf2 {[%clk 0:04:22.3]} 29... fxg4 {[%clk 0:03:15.3]} 30. hxg4
{[%clk 0:04:22.2]} 30... b6 {[%clk 0:03:14.2]} 31. Kf3 {[%clk 0:04:20.1]} 31...
Kf6 {[%clk 0:03:13]} 32. Ke4 {[%clk 0:04:20]} 32... a6 {[%clk 0:03:10.7]} 33.
Nd5+ {[%clk 0:04:19.5]} 1-0

[Event "Live Chess"]
[Site "Chess.com"]
[Date "2024.06.02"]
[Round "-"]
[White "Bodhanas"]
[Black "StoreySniper"]
[Result "1-0"]
[WhiteElo "2310"]
[BlackElo "2488"]
[TimeControl "300"]
[EndTime "3:38:57 PDT"]
[Termination "Bodhanas won by resignation"]

1. d4 {[%clk 0:04:55.5]} 1... g6 {[%clk 0:04:59.6]} 2. Nf3 {[%clk 0:04:53.7]}
2... Bg7 {[%clk 0:04:59.1]} 3. c4 {[%clk 0:04:52.9]} 3... c5 {[%clk 0:04:58.6]}
4. e3 {[%clk 0:04:50.7]} 4... d6 {[%clk 0:04:55.4]} 5. Nc3 {[%clk 0:04:48]} 5...
Nc6 {[%clk 0:04:53.9]} 6. Be2 {[%clk 0:04:44.3]} 6... Nh6 {[%clk 0:04:52.9]} 7.
O-O {[%clk 0:04:42.9]} 7... O-O {[%clk 0:04:52.2]} 8. dxc5 {[%clk 0:04:40.1]}
8... dxc5 {[%clk 0:04:51]} 9. Qxd8 {[%clk 0:04:38.4]} 9... Rxd8 {[%clk
0:04:50.9]} 10. Rd1 {[%clk 0:04:34.5]} 10... Bxc3 {[%clk 0:04:46.9]} 11. Rxd8+
{[%clk 0:04:31.7]} 11... Nxd8 {[%clk 0:04:45.5]} 12. bxc3 {[%clk 0:04:31.4]}
12... Nc6 {[%clk 0:04:37.5]} 13. e4 {[%clk 0:04:29.8]} 13... Ng4 {[%clk
0:04:34.1]} 14. h3 {[%clk 0:04:28.5]} 14... Nf6 {[%clk 0:04:29]} 15. e5 {[%clk
0:04:23.2]} 15... Nd7 {[%clk 0:04:26.1]} 16. e6 {[%clk 0:04:18.2]} 16... fxe6
{[%clk 0:04:24.9]} 17. Be3 {[%clk 0:04:16.4]} 17... b6 {[%clk 0:04:19.5]} 18.
Rd1 {[%clk 0:04:13.5]} 18... Nf6 {[%clk 0:04:07.1]} 19. Ng5 {[%clk 0:04:10.8]}
19... Ba6 {[%clk 0:03:51.5]} 20. Nxe6 {[%clk 0:04:05.5]} 20... Ne5 {[%clk
0:03:37.9]} 21. Nc7 {[%clk 0:04:02.7]} 21... Rc8 {[%clk 0:03:25.6]} 22. Nxa6
{[%clk 0:04:00.9]} 22... Ne4 {[%clk 0:03:24.9]} 23. Rc1 {[%clk 0:03:52.8]} 23...
Nd6 {[%clk 0:03:21.1]} 24. Bf4 {[%clk 0:03:48.2]} 24... Nexc4 {[%clk 0:03:19.2]}
25. Bxd6 {[%clk 0:03:46.4]} 25... Nxd6 {[%clk 0:03:18.5]} 26. Rd1 {[%clk
0:03:43.3]} 26... Kf7 {[%clk 0:03:11.3]} 27. a4 {[%clk 0:03:37]} 27... Ke8
{[%clk 0:03:08.2]} 28. a5 {[%clk 0:03:31.9]} 28... Kd8 {[%clk 0:03:07]} 29. Rb1
{[%clk 0:03:26.1]} 29... bxa5 {[%clk 0:02:54]} 30. Ra1 {[%clk 0:03:24.4]} 30...
Ne4 {[%clk 0:02:49.5]} 31. Rxa5 {[%clk 0:03:17.9]} 31... Nxc3 {[%clk 0:02:46.8]}
32. Bc4 {[%clk 0:03:14.4]} 32... Ne4 {[%clk 0:02:37]} 33. Be6 {[%clk 0:03:07.1]}
33... Ra8 {[%clk 0:02:20.2]} 34. Bd5 {[%clk 0:03:05.2]} 1-0

[Event "Live Chess"]
[Site "Chess.com"]
[Date "2024.06.02"]
[Round "-"]
[White "Dhaydon19"]
[Black "uselessduffer"]
[Result "1-0"]
[WhiteElo "2632"]
[BlackElo "2366"]
[TimeControl "300"]
[EndTime "3:39:08 PDT"]
[Termination "Dhaydon19 won by resignation"]

1. d4 {[%clk 0:04:53.4]} 1... Nf6 {[%clk 0:04:58.8]} 2. Nf3 {[%clk 0:04:52.2]}
2... e6 {[%clk 0:04:57.8]} 3. g3 {[%clk 0:04:46.5]} 3... b5 {[%clk 0:04:56]} 4.
Bg2 {[%clk 0:04:44.3]} 4... Bb7 {[%clk 0:04:55.5]} 5. c3 {[%clk 0:04:43.8]} 5...
c5 {[%clk 0:04:50.8]} 6. O-O {[%clk 0:04:36.6]} 6... Na6 {[%clk 0:04:45]} 7.
Nbd2 {[%clk 0:04:29.2]} 7... Be7 {[%clk 0:04:37.2]} 8. Re1 {[%clk 0:04:22.1]}
8... d5 {[%clk 0:04:27.8]} 9. Ne5 {[%clk 0:04:07.4]} 9... O-O {[%clk 0:04:25.1]}
10. Ndf3 {[%clk 0:04:03.9]} 10... Ne4 {[%clk 0:04:14]} 11. Be3 {[%clk
0:04:00.8]} 11... Rc8 {[%clk 0:03:18.5]} 12. Nd2 {[%clk 0:03:56.7]} 12... Nd6
{[%clk 0:02:53.1]} 13. Nb3 {[%clk 0:03:52.2]} 13... Nc4 {[%clk 0:02:39.3]} 14.
Nxc4 {[%clk 0:03:48.4]} 14... bxc4 {[%clk 0:02:39.2]} 15. Nd2 {[%clk 0:03:47.6]}
15... cxd4 {[%clk 0:02:28.6]} 16. Bxd4 {[%clk 0:03:46]} 16... Nc5 {[%clk
0:02:25.1]} 17. Qc2 {[%clk 0:03:39.3]} 17... e5 {[%clk 0:02:06.1]} 18. Bxe5
{[%clk 0:03:32.4]} 18... Re8 {[%clk 0:01:59.6]} 19. Bd4 {[%clk 0:03:30.8]} 19...
Bf6 {[%clk 0:01:53]} 20. Nf3 {[%clk 0:03:26.8]} 20... Ne4 {[%clk 0:01:50]} 21.
Rad1 {[%clk 0:03:21.4]} 21... a5 {[%clk 0:01:45.9]} 22. Bxf6 {[%clk 0:03:16.6]}
22... Qxf6 {[%clk 0:01:45.8]} 23. e3 {[%clk 0:03:15.4]} 23... h5 {[%clk
0:01:43.7]} 24. h4 {[%clk 0:03:13]} 24... Rcd8 {[%clk 0:01:41.7]} 25. Nd4 {[%clk
0:03:08.4]} 25... Nc5 {[%clk 0:01:40.1]} 26. b3 {[%clk 0:03:05.4]} 26... Nd3
{[%clk 0:01:35.6]} 27. Re2 {[%clk 0:03:03.6]} 27... Bc8 {[%clk 0:01:32]} 28.
Red2 {[%clk 0:02:55.3]} 28... Bg4 {[%clk 0:01:29.8]} 29. Rf1 {[%clk 0:02:53]}
29... g5 {[%clk 0:01:26.2]} 30. hxg5 {[%clk 0:02:49.9]} 30... Qxg5 {[%clk
0:01:26.1]} 31. Rxd3 {[%clk 0:02:47.6]} 31... cxd3 {[%clk 0:01:24.9]} 32. Qxd3
{[%clk 0:02:47.1]} 32... h4 {[%clk 0:01:23]} 33. gxh4 {[%clk 0:02:38.9]} 33...
Qxh4 {[%clk 0:01:22.9]} 34. f3 {[%clk 0:02:29.8]} 34... Bc8 {[%clk 0:01:19.5]}
35. Qd2 {[%clk 0:02:25.9]} 35... Rd6 {[%clk 0:01:16.2]} 36. Qf2 {[%clk
0:02:22.7]} 36... Qh5 {[%clk 0:01:13.7]} 37. Ne2 {[%clk 0:02:13.4]} 37... Kh7
{[%clk 0:00:59.8]} 38. Nf4 {[%clk 0:02:11.4]} 38... Qh6 {[%clk 0:00:59.4]} 39.
Re1 {[%clk 0:02:04.7]} 39... Rg8 {[%clk 0:00:57.7]} 40. Kf1 {[%clk 0:02:03.4]}
40... Qh2 {[%clk 0:00:52.7]} 41. Ke2 {[%clk 0:01:56.3]} 41... Rh6 {[%clk
0:00:16]} 42. Rh1 {[%clk 0:01:50.4]} 42... Qg3 {[%clk 0:00:15.6]} 43. Qxg3
{[%clk 0:01:48.5]} 43... Rxg3 {[%clk 0:00:13.3]} 44. Rxh6+ {[%clk 0:01:48.1]}
44... Kxh6 {[%clk 0:00:13.2]} 45. Kf2 {[%clk 0:01:47]} 45... Rg8 {[%clk
0:00:11.9]} 46. Nxd5 {[%clk 0:01:45.8]} 46... Rd8 {[%clk 0:00:10.9]} 47. c4
{[%clk 0:01:43.3]} 47... Bb7 {[%clk 0:00:10.4]} 48. f4 {[%clk 0:01:41.7]} 48...
Bxd5 {[%clk 0:00:09]} 49. Bxd5 {[%clk 0:01:39.5]} 49... f6 {[%clk 0:00:08.8]}
50. e4 {[%clk 0:01:38.1]} 50... Kg7 {[%clk 0:00:08.5]} 51. Ke3 {[%clk
0:01:36.6]} 51... Kf8 {[%clk 0:00:08.1]} 52. Kd4 {[%clk 0:01:36.2]} 52... Ke7
{[%clk 0:00:07.8]} 53. a3 {[%clk 0:01:35.1]} 53... Rb8 {[%clk 0:00:07]} 54. c5
{[%clk 0:01:33.7]} 1-0

[Event "Live Chess"]
[Site "Chess.com"]
[Date "2024.06.02"]
[Round "-"]
[White "halfberg"]
[Black "ogpin"]
[Result "1-0"]
[WhiteElo "1902"]
[BlackElo "2176"]
[TimeControl "300"]
[EndTime "3:39:32 PDT"]
[Termination "halfberg won by resignation"]

1. e4 {[%clk 0:04:55.1]} 1... d6 {[%clk 0:04:52.6]} 2. d4 {[%clk 0:04:52.5]}
2... Nd7 {[%clk 0:04:52.5]} 3. Nc3 {[%clk 0:04:51.5]} 3... Ngf6 {[%clk
0:04:52.4]} 4. Nf3 {[%clk 0:04:49.2]} 4... e5 {[%clk 0:04:52.3]} 5. dxe5 {[%clk
0:04:42]} 5... dxe5 {[%clk 0:04:52.2]} 6. Bg5 {[%clk 0:04:39.9]} 6... Be7 {[%clk
0:04:51.9]} 7. Bd3 {[%clk 0:04:31.9]} 7... Kf8 {[%clk 0:04:51.1]} 8. O-O {[%clk
0:04:29.5]} 8... h6 {[%clk 0:04:49.3]} 9. Bh4 {[%clk 0:04:19.4]} 9... g5 {[%clk
0:04:48.6]} 10. Bg3 {[%clk 0:04:18.3]} 10... c6 {[%clk 0:04:47.5]} 11. Nxe5
{[%clk 0:04:11]} 11... Nxe5 {[%clk 0:04:46.9]} 12. Bxe5 {[%clk 0:04:09.4]} 12...
Kg7 {[%clk 0:04:46.4]} 13. f4 {[%clk 0:03:51.9]} 13... g4 {[%clk 0:04:43.6]} 14.
f5 {[%clk 0:03:46.8]} 14... h5 {[%clk 0:04:38.8]} 15. Qe2 {[%clk 0:03:35.9]}
15... Re8 {[%clk 0:04:30.7]} 16. Qe3 {[%clk 0:03:00.7]} 16... Qb6 {[%clk
0:04:13.4]} 17. Bd4 {[%clk 0:02:53.9]} 17... c5 {[%clk 0:04:00.8]} 18. Qg5+
{[%clk 0:02:39.5]} 18... Kh7 {[%clk 0:03:59.2]} 19. Bxf6 {[%clk 0:02:36.9]}
19... Qxf6 {[%clk 0:03:56.2]} 20. Qxh5+ {[%clk 0:02:35.1]} 20... Qh6 {[%clk
0:03:55.4]} 21. Qxf7+ {[%clk 0:02:22.3]} 21... Kh8 {[%clk 0:03:50.5]} 22. Qxe8+
{[%clk 0:02:20.2]} 22... Kh7 {[%clk 0:03:49.9]} 23. Qxe7+ {[%clk 0:02:18.4]} 1-0

[Event "Live Chess"]
[Site "Chess.com"]
[Date "2024.06.02"]
[Round "-"]
[White "MagnersCarlsberg2870"]
[Black "Crowded_House"]
[Result "1/2-1/2"]
[WhiteElo "1795"]
[BlackElo "1650"]
[TimeControl "300"]
[EndTime "3:40:40 PDT"]
[Termination "Game drawn by repetition"]

1. d4 {[%clk 0:04:57.6]} 1... e6 {[%clk 0:04:59.5]} 2. Nf3 {[%clk 0:04:54.9]}
2... d5 {[%clk 0:04:58.7]} 3. e3 {[%clk 0:04:54.1]} 3... c5 {[%clk 0:04:56.9]}
4. Bd3 {[%clk 0:04:51.1]} 4... Nc6 {[%clk 0:04:55.2]} 5. c3 {[%clk 0:04:50.3]}
5... Qb6 {[%clk 0:04:53.9]} 6. Nbd2 {[%clk 0:04:48.9]} 6... Bd6 {[%clk 0:04:46]}
7. Qe2 {[%clk 0:04:47.8]} 7... Nf6 {[%clk 0:04:42.7]} 8. O-O {[%clk 0:04:46.9]}
8... O-O {[%clk 0:04:40.9]} 9. e4 {[%clk 0:04:46.3]} 9... dxe4 {[%clk
0:04:38.4]} 10. Nxe4 {[%clk 0:04:45.2]} 10... Nxe4 {[%clk 0:04:36.8]} 11. Qxe4
{[%clk 0:04:44.4]} 11... g6 {[%clk 0:04:30.9]} 12. Bh6 {[%clk 0:04:43]} 12... f5
{[%clk 0:04:24.3]} 13. Qh4 {[%clk 0:04:35.5]} 13... Be7 {[%clk 0:04:13.6]} 14.
Bg5 {[%clk 0:04:32.2]} 14... Bxg5 {[%clk 0:04:10.5]} 15. Nxg5 {[%clk 0:04:30.9]}
15... Qc7 {[%clk 0:04:05.2]} 16. Rfe1 {[%clk 0:04:19.9]} 16... Re8 {[%clk
0:03:46.9]} 17. Bc4 {[%clk 0:04:14.6]} 17... cxd4 {[%clk 0:03:39.6]} 18. Bxe6+
{[%clk 0:04:10.1]} 18... Bxe6 {[%clk 0:03:34.4]} 19. Nxe6 {[%clk 0:04:07.7]}
19... Qe7 {[%clk 0:03:22]} 20. Qxe7 {[%clk 0:04:01.3]} 20... Rxe7 {[%clk
0:03:20.9]} 21. Nxd4 {[%clk 0:04:00.3]} 21... Rxe1+ {[%clk 0:03:19]} 22. Rxe1
{[%clk 0:03:58.6]} 22... Kf7 {[%clk 0:03:09.5]} 23. f4 {[%clk 0:03:57.2]} 23...
Nxd4 {[%clk 0:03:07.7]} 24. cxd4 {[%clk 0:03:55.5]} 24... Rd8 {[%clk 0:03:04.3]}
25. Rd1 {[%clk 0:03:49.6]} 25... Kf6 {[%clk 0:03:00.7]} 26. Kf2 {[%clk
0:03:48.7]} 26... h6 {[%clk 0:02:58.7]} 27. Ke3 {[%clk 0:03:47.3]} 27... g5
{[%clk 0:02:58]} 28. g3 {[%clk 0:03:45.9]} 28... Rc8 {[%clk 0:02:50.9]} 29. Kd3
{[%clk 0:03:44.2]} 29... Rc6 {[%clk 0:02:43]} 30. Re1 {[%clk 0:03:40.3]} 30...
Kf7 {[%clk 0:02:39.5]} 31. Re5 {[%clk 0:03:38.4]} 31... Kf6 {[%clk 0:02:27.7]}
32. d5 {[%clk 0:03:34.9]} 32... Rc7 {[%clk 0:02:17.8]} 33. Re6+ {[%clk
0:03:32.8]} 33... Kg7 {[%clk 0:02:16.3]} 34. Kd4 {[%clk 0:03:29.9]} 34... gxf4
{[%clk 0:02:13.7]} 35. gxf4 {[%clk 0:03:28.7]} 35... Rc2 {[%clk 0:02:11.9]} 36.
Re7+ {[%clk 0:03:20]} 36... Kf6 {[%clk 0:02:10.2]} 37. Rxb7 {[%clk 0:03:18.5]}
37... Rxh2 {[%clk 0:02:09.1]} 38. d6 {[%clk 0:03:15]} 38... Rd2+ {[%clk
0:02:06.4]} 39. Kc5 {[%clk 0:03:13.6]} 39... Ke6 {[%clk 0:02:02.7]} 40. Re7+
{[%clk 0:03:09]} 40... Kf6 {[%clk 0:02:00.3]} 41. Rh7 {[%clk 0:03:03.3]} 41...
Rc2+ {[%clk 0:01:56.4]} 42. Kd5 {[%clk 0:03:01.6]} 42... Rd2+ {[%clk 0:01:55.5]}
43. Kc5 {[%clk 0:03:00.7]} 43... Rc2+ {[%clk 0:01:54.9]} 44. Kd5 {[%clk
0:02:59.9]} 44... Rd2+ {[%clk 0:01:54.3]} 45. Kc5 {[%clk 0:02:59.3]} 1/2-1/2

[Event "Live Chess"]
[Site "Chess.com"]
[Date "2024.06.02"]
[Round "-"]
[White "wadsy27"]
[Black "AlexanderMatlak"]
[Result "1-0"]
[WhiteElo "2581"]
[BlackElo "2392"]
[TimeControl "300"]
[EndTime "3:40:44 PDT"]
[Termination "wadsy27 won on time"]

1. d4 {[%clk 0:04:58]} 1... Nf6 {[%clk 0:04:58.9]} 2. c4 {[%clk 0:04:57.5]} 2...
c5 {[%clk 0:04:58.3]} 3. d5 {[%clk 0:04:56.5]} 3... e6 {[%clk 0:04:57.7]} 4. Nc3
{[%clk 0:04:55.4]} 4... exd5 {[%clk 0:04:57.1]} 5. cxd5 {[%clk 0:04:55.3]} 5...
d6 {[%clk 0:04:56.7]} 6. Nf3 {[%clk 0:04:54.9]} 6... g6 {[%clk 0:04:56.2]} 7. h3
{[%clk 0:04:54.4]} 7... Bg7 {[%clk 0:04:51.3]} 8. Bf4 {[%clk 0:04:53.2]} 8...
O-O {[%clk 0:04:48.7]} 9. e3 {[%clk 0:04:52.9]} 9... Ne8 {[%clk 0:04:46.4]} 10.
Be2 {[%clk 0:04:50]} 10... Nd7 {[%clk 0:04:45.4]} 11. O-O {[%clk 0:04:48.3]}
11... Ne5 {[%clk 0:04:44.5]} 12. Nxe5 {[%clk 0:04:42.7]} 12... dxe5 {[%clk
0:04:44.4]} 13. Bh2 {[%clk 0:04:41.7]} 13... Nd6 {[%clk 0:04:43.7]} 14. Nb5
{[%clk 0:04:35.8]} 14... Nxb5 {[%clk 0:04:35.9]} 15. Bxb5 {[%clk 0:04:34.5]}
15... a6 {[%clk 0:04:35.5]} 16. Be2 {[%clk 0:04:33.4]} 16... b5 {[%clk
0:04:23.2]} 17. a4 {[%clk 0:04:32.1]} 17... Bd7 {[%clk 0:04:15.3]} 18. e4 {[%clk
0:04:25.9]} 18... Qb6 {[%clk 0:04:08.6]} 19. Qc2 {[%clk 0:04:18.4]} 19... c4
{[%clk 0:04:02.3]} 20. Kh1 {[%clk 0:04:08.8]} 20... Rfc8 {[%clk 0:03:41]} 21. f3
{[%clk 0:04:05.2]} 21... Qd8 {[%clk 0:03:13.8]} 22. Bg1 {[%clk 0:03:53.2]} 22...
Qh4 {[%clk 0:03:08]} 23. Bf2 {[%clk 0:03:51.4]} 23... Qh6 {[%clk 0:02:55.9]} 24.
axb5 {[%clk 0:03:49.8]} 24... axb5 {[%clk 0:02:54]} 25. Rxa8 {[%clk 0:03:49.7]}
25... Rxa8 {[%clk 0:02:53.6]} 26. b3 {[%clk 0:03:49.4]} 26... cxb3 {[%clk
0:02:28.4]} 27. Qxb3 {[%clk 0:03:49.3]} 27... Bf8 {[%clk 0:02:27.9]} 28. Qb2
{[%clk 0:03:42.6]} 28... Bd6 {[%clk 0:02:19.5]} 29. Bg3 {[%clk 0:03:29.1]} 29...
Qe3 {[%clk 0:01:49.4]} 30. Bxb5 {[%clk 0:03:23]} 30... Rb8 {[%clk 0:01:36.4]}
31. Qe2 {[%clk 0:03:22]} 31... Qxe2 {[%clk 0:01:27.1]} 32. Bxe2 {[%clk
0:03:20.8]} 32... Rb2 {[%clk 0:01:26.3]} 33. Ba6 {[%clk 0:03:15.6]} 33... f5
{[%clk 0:01:17.1]} 34. exf5 {[%clk 0:03:07]} 34... gxf5 {[%clk 0:01:17]} 35. Rc1
{[%clk 0:03:04.2]} 35... Kf7 {[%clk 0:01:08.5]} 36. Bc8 {[%clk 0:02:57.2]} 36...
Ke8 {[%clk 0:00:58.9]} 37. Bxd7+ {[%clk 0:02:51.1]} 37... Kxd7 {[%clk
0:00:58.6]} 38. Ra1 {[%clk 0:02:33]} 38... Rb7 {[%clk 0:00:56.1]} 39. Bh4 {[%clk
0:02:17.8]} 39... e4 {[%clk 0:00:44.9]} 40. fxe4 {[%clk 0:02:16.7]} 40... fxe4
{[%clk 0:00:44.8]} 41. Re1 {[%clk 0:02:11.3]} 41... Rb4 {[%clk 0:00:38.8]} 42.
g4 {[%clk 0:02:09.7]} 42... Rb2 {[%clk 0:00:26.1]} 43. Rxe4 {[%clk 0:02:06.1]}
43... Rh2+ {[%clk 0:00:23.6]} 44. Kg1 {[%clk 0:02:05.2]} 44... Rxh3 {[%clk
0:00:23.2]} 45. Bf2 {[%clk 0:02:04.3]} 45... Rd3 {[%clk 0:00:21.1]} 46. Rd4
{[%clk 0:01:49.2]} 46... Rxd4 {[%clk 0:00:18.6]} 47. Bxd4 {[%clk 0:01:49.1]}
47... Bf4 {[%clk 0:00:17.9]} 48. Bc5 {[%clk 0:01:47.9]} 48... Bd6 {[%clk
0:00:15.7]} 49. Be3 {[%clk 0:01:40.7]} 49... Be5 {[%clk 0:00:14.2]} 50. Kg2
{[%clk 0:01:37.8]} 50... Kd6 {[%clk 0:00:13.3]} 51. Kh3 {[%clk 0:01:37.7]} 51...
Kxd5 {[%clk 0:00:13.2]} 52. Kh4 {[%clk 0:01:37.6]} 52... Ke6 {[%clk 0:00:12.5]}
53. Kh5 {[%clk 0:01:37.5]} 53... Kf7 {[%clk 0:00:11.3]} 54. Kh6 {[%clk
0:01:36.7]} 54... Kg8 {[%clk 0:00:09.9]} 55. Bc5 {[%clk 0:01:35]} 55... Bg7+
{[%clk 0:00:09.8]} 56. Kg5 {[%clk 0:01:33.8]} 56... Bc3 {[%clk 0:00:07.7]} 57.
Be7 {[%clk 0:01:30.9]} 57... Bg7 {[%clk 0:00:06.6]} 58. Bf6 {[%clk 0:01:29.8]}
58... Bxf6+ {[%clk 0:00:03.3]} 59. Kxf6 {[%clk 0:01:29]} 59... Kf8 {[%clk
0:00:02.7]} 60. Kf5 {[%clk 0:01:26.5]} 60... Kg7 {[%clk 0:00:02.6]} 61. Kg5
{[%clk 0:01:17.4]} 61... Kf7 {[%clk 0:00:01.8]} 62. Kh6 {[%clk 0:01:15.2]} 62...
Kg8 {[%clk 0:00:01.2]} 63. g5 {[%clk 0:01:12]} 63... Kh8 {[%clk 0:00:00.2]} 64.
Kh5 {[%clk 0:01:11]} 64... Kg7 {[%clk 0:00:00.1]} 65. Kg4 {[%clk 0:01:10.2]} 1-0

[Event "Live Chess"]
[Site "Chess.com"]
[Date "2024.06.02"]
[Round "-"]
[White "stevochess11"]
[Black "BishopofWells"]
[Result "1-0"]
[WhiteElo "1714"]
[BlackElo "1546"]
[TimeControl "300"]
[EndTime "3:40:59 PDT"]
[Termination "stevochess11 won by resignation"]

1. d4 {[%clk 0:04:56.9]} 1... d5 {[%clk 0:04:58]} 2. Nf3 {[%clk 0:04:56]} 2...
h6 {[%clk 0:04:55.9]} 3. e3 {[%clk 0:04:49.6]} 3... Bg4 {[%clk 0:04:53]} 4. c4
{[%clk 0:04:44.7]} 4... e6 {[%clk 0:04:51.5]} 5. Qb3 {[%clk 0:04:42]} 5... Qc8
{[%clk 0:04:45.8]} 6. Ne5 {[%clk 0:04:38.9]} 6... Bf5 {[%clk 0:04:38.4]} 7. Nc3
{[%clk 0:04:25.2]} 7... c6 {[%clk 0:04:34.7]} 8. cxd5 {[%clk 0:04:20.9]} 8...
exd5 {[%clk 0:04:33]} 9. Bd2 {[%clk 0:04:16.8]} 9... Nd7 {[%clk 0:04:28.1]} 10.
f4 {[%clk 0:04:12.3]} 10... f6 {[%clk 0:04:21.7]} 11. Nxd7 {[%clk 0:04:03.8]}
11... Qxd7 {[%clk 0:04:16.8]} 12. Be2 {[%clk 0:04:01.1]} 12... Bd6 {[%clk
0:04:14.5]} 13. O-O {[%clk 0:03:54.9]} 13... Ne7 {[%clk 0:04:10.3]} 14. Rac1
{[%clk 0:03:46.1]} 14... O-O {[%clk 0:04:06.1]} 15. Na4 {[%clk 0:03:36.5]} 15...
Rae8 {[%clk 0:03:48.8]} 16. Nc5 {[%clk 0:03:23.8]} 16... Bxc5 {[%clk 0:03:33]}
17. Rxc5 {[%clk 0:03:20]} 17... Ng6 {[%clk 0:03:31.6]} 18. Bb4 {[%clk
0:03:14.3]} 18... Rf7 {[%clk 0:03:12.7]} 19. Rcc1 {[%clk 0:03:04.5]} 19... Qe6
{[%clk 0:03:09.1]} 20. Bd2 {[%clk 0:02:59.2]} 20... Be4 {[%clk 0:02:49.7]} 21.
Bd3 {[%clk 0:02:53.1]} 21... Ne7 {[%clk 0:02:42.5]} 22. Bxe4 {[%clk 0:02:50.8]}
22... Qxe4 {[%clk 0:02:40.2]} 23. Qxb7 {[%clk 0:02:42.8]} 23... Nf5 {[%clk
0:02:38.9]} 24. Qxc6 {[%clk 0:02:38.6]} 24... Nxe3 {[%clk 0:02:37]} 25. Bxe3
{[%clk 0:02:35.3]} 25... Qxe3+ {[%clk 0:02:35.4]} 26. Kh1 {[%clk 0:02:31.2]}
26... Qxd4 {[%clk 0:02:27.5]} 27. Qxe8+ {[%clk 0:02:26.2]} 27... Rf8 {[%clk
0:02:20.3]} 28. Qe6+ {[%clk 0:02:24.8]} 28... Kh8 {[%clk 0:02:17.8]} 29. Rc8
{[%clk 0:02:18.2]} 29... Rxc8 {[%clk 0:02:11.9]} 30. Qxc8+ {[%clk 0:02:15.3]}
30... Kh7 {[%clk 0:02:11.4]} 31. Qf5+ {[%clk 0:02:13.8]} 31... Kg8 {[%clk
0:02:10]} 32. Re1 {[%clk 0:02:11.2]} 32... Qa4 {[%clk 0:02:04.6]} 33. Qg6 {[%clk
0:01:58.1]} 33... Kf8 {[%clk 0:01:59.3]} 34. h3 {[%clk 0:01:48.1]} 34... d4
{[%clk 0:01:57.3]} 35. Qe4 {[%clk 0:01:42.7]} 35... a5 {[%clk 0:01:47.2]} 36.
Qe7+ {[%clk 0:01:32.5]} 36... Kg8 {[%clk 0:01:45]} 37. Qe8+ {[%clk 0:01:31.4]}
1-0

[Event "Live Chess"]
[Site "Chess.com"]
[Date "2024.06.02"]
[Round "-"]
[White "dmitro74"]
[Black "Isambard_Thomas"]
[Result "0-1"]
[WhiteElo "1724"]
[BlackElo "2180"]
[TimeControl "300"]
[EndTime "3:41:09 PDT"]
[Termination "Isambard_Thomas won by resignation"]

1. d4 {[%clk 0:04:56.2]} 1... Nf6 {[%clk 0:04:58.5]} 2. c4 {[%clk 0:04:55.1]}
2... e5 {[%clk 0:04:57.6]} 3. dxe5 {[%clk 0:04:53.7]} 3... Ng4 {[%clk
0:04:56.8]} 4. Nf3 {[%clk 0:04:52.6]} 4... d6 {[%clk 0:04:56]} 5. exd6 {[%clk
0:04:50.3]} 5... Bxd6 {[%clk 0:04:55]} 6. h3 {[%clk 0:04:49.1]} 6... Nxf2 {[%clk
0:04:54]} 7. Qd4 {[%clk 0:04:37.9]} 7... Nxh1 {[%clk 0:04:40.2]} 8. Bg5 {[%clk
0:04:34.3]} 8... Bg3+ {[%clk 0:04:34]} 9. Kd1 {[%clk 0:04:28.9]} 9... Qxd4+
{[%clk 0:04:06.5]} 10. Nxd4 {[%clk 0:04:27]} 10... Nf2+ {[%clk 0:04:04]} 11. Kc2
{[%clk 0:04:24.5]} 11... c5 {[%clk 0:03:58.6]} 12. Nb5 {[%clk 0:04:16.9]} 12...
Bf5+ {[%clk 0:03:54.6]} 13. Kb3 {[%clk 0:04:13.5]} 13... Nc6 {[%clk 0:03:39.1]}
14. Nd6+ {[%clk 0:04:10.3]} 14... Bxd6 {[%clk 0:03:38]} 15. Nc3 {[%clk
0:04:07.4]} 15... Nd4+ {[%clk 0:03:31.3]} 16. Ka3 {[%clk 0:04:04.8]} 16... Nc2+
{[%clk 0:03:26.9]} 0-1